[Event "45th National Sub Junior 2019"]
[Site "Tiruchengode"]
[Date "2019.07.10"]
[Round "3.4"]
[White "Arjun, Gupta"]
[Black "Samant Aditya S"]
[Result "1/2-1/2"]
[ECO "D00"]
[WhiteElo "1851"]
[BlackElo "2296"]
[Annotator "NA"]
[PlyCount "84"]
[EventDate "2019.07.09"]
[EventCountry "IND"]
[SourceTitle "playchess.com"]
[Source "ChessBase"]
[SourceQuality "1"]
[TimeControl "5400+30"]

1. d4 {[%emt 0:00:00]} Nf6 {[%emt 0:00:00]} 2. Bf4 {[%emt 0:00:00]} d5 {[%emt 0:00:00]} 3. e3 {[%emt 0:00:00]} c5 {[%emt 0:00:00]} 4. c3 {[%emt 0:00:00]} Nc6 {[%emt 0:00:00]} 5. Nd2 {[%emt 0:00:00]} Bf5 {[%emt 0:00:15]} 6. Qb3 {[%emt 0:00:03]} Qd7 {[%emt 0:00:11]} 7. dxc5 {[%emt 0:00:20]} e5 {[%emt 0:00:05]} 8. Bg3 {[%emt 0:00:08]} Bxc5 {[%emt 0:00:11]} 9. Ngf3 {[%emt 0:00:05]} Qe7 {[%emt 0:00:40]} 10. Bb5 {[%emt 0:03:20]} d4 {[%emt 0:00:35]} 11. O-O {[%emt 0:17:02]} dxe3 {[%emt 0:00:19]} 12. fxe3 {[%emt 0:00:11]} Bxe3+ {[%emt 0:00:06]} 13. Kh1 {[%emt 0:00:17]} O-O {[%emt 0:01:19]} 14. Bxc6 {[%emt 0:09:41]} bxc6 {[%emt 0:00:57]} 15. Nxe5 {[%emt 0:01:32]} Be6 {[%emt 0:03:43]} 16. Qc2 {[%emt 0:03:08]} Bxd2 {[%emt 0:06:54]} 17. Qxd2 {[%emt 0:00:11]} Ne4 {[%emt 0:00:07]} 18. Qf4 {[%emt 0:01:04]} Nxg3+ {[%emt 0:00:41]} 19. Qxg3 {[%emt 0:01:08]} Qc7 {[%emt 0:03:20]} 20. b3 {[%emt 0:05:31]} Rfe8 {[%emt 0:02:07]} 21. c4 {[%emt 0:03:36]} Rad8 {[%emt 0:02:07]} 22. Rad1 {[%emt 0:00:47]} f6 {[%emt 0:06:11]} 23. Nf3 {[%emt 0:01:37]} Qxg3 {[%emt 0:00:36]} 24. hxg3 {[%emt 0:00:01]} Bf5 {[%emt 0:10:10]} 25. Kg1 {[%emt 0:03:35]} Bc2 {[%emt 0:05:49]} 26. Rxd8 {[%emt 0:00:53]} Rxd8 {[%emt 0:00:04]} 27. Re1 {[%emt 0:00:11]} Kf7 {[%emt 0:00:11]} 28. Kf2 {[%emt 0:00:18]} g5 {[%emt 0:04:37]} 29. Re2 {[%emt 0:00:40]} Bf5 {[%emt 0:06:36]} 30. Rd2 {[%emt 0:01:23]} Rxd2+ {[%emt 0:03:12]} 31. Nxd2 {[%emt 0:00:02]} c5 {[%emt 0:00:25]} 32. g4 {[%emt 0:11:59]} Bxg4 {[%emt 0:11:31]} 33. Ne4 {[%emt 0:00:08]} Ke6 {[%emt 0:00:07]} 34. Nxc5+ {[%emt 0:00:08]} Ke5 {[%emt 0:00:10]} 35. Ke3 {[%emt 0:00:34]} h5 {[%emt 0:04:26]} 36. Nd3+ {[%emt 0:01:19]} Ke6 {[%emt 0:01:02]} 37. b4 {[%emt 0:04:13]} h4 {[%emt 0:00:51]} 38. a4 {[%emt 0:01:11]} Bf5 {[%emt 0:02:42]} 39. a5 {[%emt 0:02:07]} Kd6 {[%emt 0:05:32]} 40. b5 {[%emt 0:04:25]} Bxd3 {[%emt 0:01:21]} 41. Kxd3 {[%emt 0:00:01]} g4 {[%emt 0:00:08]} 42. Ke3 {[%emt 0:01:19]} Kc5 {[%emt 0:00:11]} 1/2-1/2

[Event "45th National Sub Junior 2019"]
[Site "Tiruchengode"]
[Date "2019.07.10"]
[Round "3.4"]
[White "Arjun, Gupta"]
[Black "Samant Aditya S"]
[Result "*"]
[ECO "D00"]
[WhiteElo "1851"]
[BlackElo "2296"]
[Annotator "NA"]
[PlyCount "54"]
[EventDate "2019.07.09"]
[EventCountry "IND"]
[SourceTitle "playchess.com"]
[Source "ChessBase"]
[SourceQuality "1"]
[TimeControl "5400+30"]

1. d4 {[%emt 0:00:00]} Nf6 {[%emt 0:00:00]} 2. Bf4 {[%emt 0:00:00]} d5 {[%emt 0:00:00]} 3. e3 {[%emt 0:00:00]} c5 {[%emt 0:00:00]} 4. c3 {[%emt 0:00:00]} Nc6 {[%emt 0:00:00]} 5. Nd2 {[%emt 0:00:00]} Bf5 {[%emt 0:00:15]} 6. Qb3 {[%emt 0:00:03]} Qd7 {[%emt 0:00:11]} 7. dxc5 {[%emt 0:00:20]} e5 {[%emt 0:00:05]} 8. Bg3 {[%emt 0:00:08]} Bxc5 {[%emt 0:00:11]} 9. Ngf3 {[%emt 0:00:05]} Qe7 {[%emt 0:00:40]} 10. Bb5 {[%emt 0:03:20]} d4 {[%emt 0:00:35]} 11. O-O {[%emt 0:17:02]} dxe3 {[%emt 0:00:19]} 12. fxe3 {[%emt 0:00:11]} Bxe3+ {[%emt 0:00:06]} 13. Kh1 {[%emt 0:00:17]} O-O {[%emt 1:34:08]} 14. Bxc6 {[%emt 0:09:41]} bxc6 {[%emt 0:00:57]} 15. Nxe5 {[%emt 0:01:32]} Be6 {[%emt 0:03:43]} 16. Qc2 {[%emt 0:03:08]} Bxd2 {[%emt 0:06:54]} 17. Qxd2 {[%emt 0:00:11]} Ne4 {[%emt 0:00:07]} 18. Qf4 {[%emt 0:01:04]} Nxg3+ {[%emt 0:00:41]} 19. Qxg3 {[%emt 0:01:08]} Qc7 {[%emt 0:03:20]} 20. b3 {[%emt 0:05:31]} Rfe8 {[%emt 0:02:07]} 21. c4 {[%emt 0:03:36]} Rad8 {[%emt 0:02:07]} 22. Rad1 {[%emt 0:00:47]} f6 {[%emt 0:06:11]} 23. Nf3 {[%emt 0:01:37]} Qxg3 {[%emt 0:00:36]} 24. hxg3 {[%emt 0:00:01]} Bf5 {[%emt 0:10:10]} 25. Kg1 {[%emt 0:03:35]} Bc2 {[%emt 0:05:49]} 26. Rd3 {[%emt 0:49:43]} Rd7 27. Rxd7 {[%emt 0:00:00]} Rd8 {[%emt 0:00:34]} *

[Event "45th National Sub Junior 2019"]
[Site "Tiruchengode"]
[Date "2019.07.10"]
[Round "3.5"]
[White "Aaryan Varshney"]
[Black "Komal, Srivatsav Sajja"]
[Result "1-0"]
[ECO "A43"]
[WhiteElo "2284"]
[BlackElo "1832"]
[Annotator "NA"]
[PlyCount "119"]
[EventDate "2019.07.09"]
[EventCountry "IND"]
[SourceTitle "playchess.com"]
[Source "ChessBase"]
[SourceQuality "1"]
[TimeControl "5400+30"]

1. d4 {[%emt 0:00:32]} Nf6 {[%emt 0:00:00]} 2. Nf3 {[%emt 0:00:01]} c5 {[%emt 0:00:00]} 3. d5 {[%emt 0:00:01]} b5 {[%emt 0:00:00]} 4. Bg5 {[%emt 0:01:32]} Qb6 {[%emt 0:01:29]} 5. Nc3 {[%emt 0:02:54]} g6 {[%emt 0:01:40]} 6. d6 {[%emt 0:01:43]} Bb7 {[%emt 0:03:38]} 7. e3 {[%emt 0:00:56]} a6 {[%emt 0:01:25]} 8. Be2 {[%emt 0:08:40]} b4 {[%emt 0:03:16]} 9. Na4 {[%emt 0:02:35]} Qa5 {[%emt 0:00:29]} 10. b3 {[%emt 0:00:50]} Bg7 {[%emt 0:01:06]} 11. O-O {[%emt 0:03:01]} Ne4 {[%emt 0:02:49]} 12. Bxe7 {[%emt 0:00:21]} Nc6 {[%emt 0:05:59]} 13. Qd5 {[%emt 0:01:17]} Nd8 {[%emt 0:12:03]} 14. Bxd8 {[%emt 0:00:25]} Bxd5 {[%emt 0:00:04]} 15. Bxa5 {[%emt 0:00:02]} Bxa1 {[%emt 0:00:09]} 16. Rxa1 {[%emt 0:00:25]} Bc6 {[%emt 0:00:59]} 17. Nb6 {[%emt 0:00:40]} Rb8 {[%emt 0:00:24]} 18. Nc4 {[%emt 0:01:33]} Bb5 {[%emt 0:06:21]} 19. Bc7 {[%emt 0:00:35]} Ra8 {[%emt 0:04:14]} 20. Nfe5 {[%emt 0:01:06]} O-O {[%emt 0:07:19]} 21. Bf3 {[%emt 0:00:25]} f5 {[%emt 0:00:16]} 22. Nb6 {[%emt 0:00:19]} Rae8 {[%emt 0:00:13]} 23. Nbxd7 {[%emt 0:00:24]} Bxd7 {[%emt 0:00:04]} 24. Nxd7 {[%emt 0:00:08]} Rf7 {[%emt 0:00:29]} 25. Bxe4 {[%emt 0:00:30]} fxe4 {[%emt 0:00:06]} 26. Nxc5 {[%emt 0:00:06]} Rc8 {[%emt 0:06:00]} 27. d7 {[%emt 0:00:38]} Rxd7 {[%emt 0:00:02]} 28. Nxd7 {[%emt 0:00:01]} Rxc7 {[%emt 0:00:06]} 29. Nf6+ {[%emt 0:00:05]} Kf7 {[%emt 0:00:04]} 30. Nxe4 {[%emt 0:00:04]} Rxc2 {[%emt 0:00:03]} 31. g3 {[%emt 0:00:38]} a5 {[%emt 0:00:19]} 32. Nd6+ {[%emt 0:00:08]} Kf6 {[%emt 0:00:07]} 33. Nb7 {[%emt 0:00:15]} a4 {[%emt 0:00:09]} 34. bxa4 {[%emt 0:00:05]} Rc7 {[%emt 0:00:03]} 35. Na5 {[%emt 0:00:18]} Ra7 {[%emt 0:00:06]} 36. Nc6 {[%emt 0:00:05]} Rxa4 {[%emt 0:00:03]} 37. Rb1 {[%emt 0:00:03]} Rxa2 {[%emt 0:00:07]} 38. Rxb4 {[%emt 0:00:03]} g5 {[%emt 0:00:14]} 39. Kg2 {[%emt 0:00:05]} h5 {[%emt 0:00:03]} 40. Nd4 {[%emt 0:00:08]} h4 {[%emt 0:00:10]} 41. g4 {[%emt 0:00:13]} h3+ {[%emt 0:00:03]} 42. Kg3 {[%emt 0:00:02]} Rd2 {[%emt 0:00:07]} 43. Rb6+ {[%emt 0:00:04]} Kf7 {[%emt 0:00:09]} 44. Nf3 {[%emt 0:00:12]} Rd5 {[%emt 0:00:10]} 45. Kxh3 {[%emt 0:00:06]} Kg7 {[%emt 0:00:09]} 46. Kg3 {[%emt 0:00:08]} Kh7 {[%emt 0:00:13]} 47. Re6 {[%emt 0:00:04]} Kg7 {[%emt 0:00:03]} 48. Re5 {[%emt 0:00:03]} Rd6 {[%emt 0:00:23]} 49. Rxg5+ {[%emt 0:00:05]} Kh7 {[%emt 0:00:02]} 50. h4 {[%emt 0:00:06]} Kh8 {[%emt 0:00:04]} 51. h5 {[%emt 0:00:03]} Rc6 {[%emt 0:00:12]} 52. Ra5 {[%emt 0:00:03]} Rc8 {[%emt 0:00:05]} 53. g5 {[%emt 0:00:03]} Rc1 {[%emt 0:00:04]} 54. g6 {[%emt 0:00:03]} Rc8 {[%emt 0:00:12]} 55. h6 {[%emt 0:00:05]} Rg8 {[%emt 0:00:06]} 56. Ne5 {[%emt 0:00:31]} Rc8 {[%emt 0:00:10]} 57. Ra7 {[%emt 0:00:20]} Rb8 {[%emt 0:00:07]} 58. Rh7+ {[%emt 0:00:14]} Kg8 {[%emt 0:00:03]} 59. Rg7+ {[%emt 0:00:27]} Kf8 {[%emt 0:00:06]} 60. Nd7+ {[%emt 0:00:05]} 1-0

[Event "45th National Sub Junior 2019"]
[Site "Tiruchengode"]
[Date "2019.07.10"]
[Round "3.6"]
[White "Avinash, Ramesh"]
[Black "Kushagra Mohan"]
[Result "0-1"]
[ECO "B07"]
[WhiteElo "1848"]
[BlackElo "2250"]
[Annotator "NA"]
[PlyCount "106"]
[EventDate "2019.07.09"]
[EventCountry "IND"]
[SourceTitle "playchess.com"]
[Source "ChessBase"]
[SourceQuality "1"]
[TimeControl "5400+30"]

1. e4 {[%emt 0:00:00]} d6 {[%emt 0:00:00]} 2. d4 {[%emt 0:00:01]} Nf6 {[%emt 0:00:00]} 3. Nc3 {[%emt 0:00:12]} g6 {[%emt 0:00:04]} 4. f3 {[%emt 0:01:24]} c6 {[%emt 0:02:47]} 5. Be3 {[%emt 0:00:29]} Nbd7 {[%emt 0:00:09]} 6. Qd2 {[%emt 0:01:45]} b5 {[%emt 0:01:36]} 7. h4 {[%emt 0:06:20]} h5 {[%emt 0:00:57]} 8. Nh3 {[%emt 0:06:30]} Bg7 {[%emt 0:01:03]} 9. a3 {[%emt 0:07:43]} Qc7 {[%emt 0:05:21]} 10. Rd1 {[%emt 0:09:42]} a6 {[%emt 0:08:20]} 11. Ng5 {[%emt 0:04:16]} O-O {[%emt 0:08:40]} 12. Nh3 {[%emt 0:07:37]} Nb6 {[%emt 0:03:39]} 13. Bh6 {[%emt 0:03:46]} c5 {[%emt 0:13:07]} 14. Bxg7 {[%emt 0:04:39]} Kxg7 {[%emt 0:00:02]} 15. dxc5 {[%emt 0:02:28]} dxc5 {[%emt 0:02:59]} 16. Qf4 {[%emt 0:02:30]} e5 {[%emt 0:00:46]} 17. Qe3 {[%emt 0:00:26]} Bxh3 {[%emt 0:02:29]} 18. Rxh3 {[%emt 0:00:53]} Rfd8 {[%emt 0:00:47]} 19. Rxd8 {[%emt 0:01:40]} Rxd8 {[%emt 0:00:04]} 20. Be2 {[%emt 0:02:13]} b4 {[%emt 0:02:28]} 21. Nb1 {[%emt 0:02:29]} a5 {[%emt 0:01:24]} 22. Rh1 {[%emt 0:02:13]} c4 {[%emt 0:08:05]} 23. Kf2 {[%emt 0:01:27]} Na4 {[%emt 0:36:43]} 24. axb4 {[%emt 0:02:34]} axb4 {[%emt 0:00:00]} 25. b3 {[%emt 0:00:45]} Nb6 {[%emt 0:00:00]} 26. Nd2 {[%emt 0:05:29]} c3 {[%emt 0:00:00]} 27. Nf1 {[%emt 0:03:13]} Nbd7 {[%emt 0:00:00]} 28. Ng3 {[%emt 0:02:30]} Ra8 {[%emt 0:00:00]} 29. Rc1 {[%emt 0:03:51]} Qc5 {[%emt 0:00:00]} 30. Qxc5 {[%emt 0:01:46]} Nxc5 {[%emt 0:00:00]} 31. Nf1 {[%emt 0:01:44]} Ne6 {[%emt 0:00:00]} 32. Ne3 {[%emt 0:01:29]} Nd4 {[%emt 0:00:00]} 33. Bd3 {[%emt 0:04:51]} Ra2 {[%emt 0:00:00]} 34. Kg3 {[%emt 0:00:23]} Nd7 {[%emt 0:00:00]} 35. Rd1 {[%emt 0:04:50]} Nc5 {[%emt 0:00:00]} 36. Nd5 {[%emt 0:01:01]} Nxd3 {[%emt 0:00:00]} 37. Rxd3 {[%emt 0:00:03]} Nxc2 {[%emt 0:00:00]} 38. Nxb4 {[%emt 0:00:11]} Nxb4 {[%emt 0:00:00]} 39. Rxc3 {[%emt 0:00:01]} Rc2 {[%emt 0:00:00]} 40. Re3 {[%emt 0:00:13]} Nc6 {[%emt 0:00:00]} 41. Kh3 {[%emt 0:00:21]} Nd4 {[%emt 0:00:00]} 42. b4 {[%emt 0:00:20]} Ne2 {[%emt 0:00:00]} 43. Kh2 {[%emt 0:00:53]} Nf4 {[%emt 0:00:00]} 44. Rb3 {[%emt 0:00:04]} Rxg2+ {[%emt 0:00:00]} 45. Kh1 {[%emt 0:00:09]} g5 {[%emt 0:00:00]} 46. b5 {[%emt 0:00:50]} g4 {[%emt 0:00:00]} 47. fxg4 {[%emt 0:02:20]} hxg4 {[%emt 0:00:00]} 48. b6 {[%emt 0:00:44]} g3 {[%emt 0:00:00]} 49. b7 {[%emt 0:00:38]} Rh2+ {[%emt 0:00:00]} 50. Kg1 {[%emt 0:00:02]} Nh3+ {[%emt 0:00:00]} 51. Kf1 {[%emt 0:00:08]} g2+ {[%emt 0:00:00]} 52. Ke2 {[%emt 0:00:05]} g1=Q+ {[%emt 0:00:00]} 53. Kd3 {[%emt 0:00:04]} Qd4# {[%emt 0:00:00]} 0-1

[Event "45th National Sub Junior 2019"]
[Site "Tiruchengode"]
[Date "2019.07.10"]
[Round "3.7"]
[White "Vignesh, B."]
[Black "Ajay Karthikeyan"]
[Result "0-1"]
[ECO "B50"]
[WhiteElo "1806"]
[BlackElo "2216"]
[Annotator "NA"]
[PlyCount "146"]
[EventDate "2019.07.09"]
[EventCountry "IND"]
[SourceTitle "playchess.com"]
[Source "ChessBase"]
[SourceQuality "1"]
[TimeControl "5400+30"]

1. e4 {[%emt 1:30:30]} c5 {[%emt 0:00:26]} 2. Nf3 {[%emt 0:00:00]} d6 {[%emt 0:00:15]} 3. c3 {[%emt 0:00:00]} Nf6 {[%emt 0:01:08]} 4. Be2 {[%emt 0:00:00]} e6 {[%emt 0:00:32]} 5. O-O {[%emt 0:00:00]} Be7 {[%emt 0:00:03]} 6. Re1 {[%emt 0:00:00]} O-O {[%emt 0:00:31]} 7. Bf1 {[%emt 0:00:00]} b6 {[%emt 0:03:48]} 8. d4 {[%emt 0:00:00]} Ba6 {[%emt 0:08:03]} 9. Bxa6 {[%emt 0:00:00]} Nxa6 {[%emt 0:00:02]} 10. d5 {[%emt 0:00:00]} Nc7 {[%emt 0:01:35]} 11. c4 {[%emt 0:00:00]} e5 {[%emt 0:01:51]} 12. Nc3 {[%emt 0:00:00]} a6 {[%emt 0:02:22]} 13. a4 {[%emt 0:00:00]} Nd7 {[%emt 0:02:49]} 14. Nd2 {[%emt 0:00:00]} g6 {[%emt 0:01:15]} 15. Qe2 {[%emt 0:00:00]} a5 {[%emt 0:03:45]} 16. Nb5 {[%emt 0:00:00]} Ne8 {[%emt 0:00:15]} 17. Ra3 {[%emt 0:00:00]} Ng7 {[%emt 0:02:20]} 18. Nf1 {[%emt 0:00:00]} f5 {[%emt 0:08:00]} 19. Bh6 {[%emt 0:00:00]} f4 {[%emt 0:03:32]} 20. Nd2 {[%emt 0:00:00]} Rf7 {[%emt 0:05:17]} 21. Bxg7 {[%emt 0:00:00]} Rxg7 {[%emt 0:01:01]} 22. Qg4 {[%emt 0:00:00]} Nf8 {[%emt 0:01:59]} 23. Rb3 {[%emt 0:00:00]} h5 {[%emt 0:08:22]} 24. Qe2 {[%emt 0:00:00]} Qd7 {[%emt 0:04:49]} 25. Qf3 {[%emt 0:00:00]} Bd8 {[%emt 0:14:27]} 26. Qh3 {[%emt 0:00:00]} Qe7 {[%emt 0:00:22]} 27. Rd1 {[%emt 0:00:00]} Qf6 {[%emt 0:02:29]} 28. Nf1 {[%emt 0:00:00]} Rh7 {[%emt 0:03:46]} 29. Qf3 {[%emt 0:00:00]} g5 {[%emt 0:00:15]} 30. h3 {[%emt 0:00:00]} Qg6 {[%emt 0:00:32]} 31. Nh2 {[%emt 0:00:00]} Rb8 {[%emt 0:06:57]} 32. Qe2 {[%emt 0:00:00]} Rbb7 33. f3 {[%emt 0:00:00]} Rbg7 {[%emt 0:02:15]} 34. Rdd3 {[%emt 0:00:00]} Rh6 {[%emt 0:00:26]} 35. Rd1 {[%emt 0:00:00]} Qe8 {[%emt 0:00:12]} 36. Rd2 {[%emt 0:01:42]} Qd7 {[%emt 0:00:07]} 37. Nc3 {[%emt 0:05:30]} Nh7 {[%emt 0:02:07]} 38. Nd1 {[%emt 0:01:34]} Qxa4 {[%emt 0:01:28]} 39. Rb5 {[%emt 0:00:29]} Qa1 {[%emt 0:00:59]} 40. Nf1 {[%emt 0:00:40]} g4 {[%emt 0:00:24]} 41. fxg4 {[%emt 0:00:53]} hxg4 {[%emt 0:00:10]} 42. hxg4 {[%emt 0:00:10]} Ng5 {[%emt 0:02:45]} 43. Nf2 {[%emt 0:02:03]} Rf7 {[%emt 0:03:35]} 44. Qd1 {[%emt 0:04:09]} Qxd1 {[%emt 0:00:41]} 45. Rxd1 {[%emt 0:00:01]} Kf8 46. Rb3 {[%emt 0:01:09]} Ke8 {[%emt 0:02:50]} 47. Nd2 {[%emt 0:00:17]} Rfh7 {[%emt 0:00:23]} 48. Kf1 {[%emt 0:00:46]} Kd7 {[%emt 0:01:06]} 49. Nf3 {[%emt 0:00:11]} Kc7 {[%emt 0:00:53]} 50. Nxg5 {[%emt 0:00:07]} Bxg5 {[%emt 0:00:01]} 51. Rh3 {[%emt 0:00:09]} b5 {[%emt 0:01:15]} 52. cxb5 {[%emt 0:02:49]} Kb6 {[%emt 0:00:04]} 53. Rxh6 {[%emt 0:00:31]} Rxh6 {[%emt 0:00:04]} 54. Nh3 {[%emt 0:00:14]} Bd8 {[%emt 0:01:29]} 55. Kf2 {[%emt 0:00:36]} Kxb5 {[%emt 0:00:01]} 56. Kf3 {[%emt 0:00:18]} Rg6 {[%emt 0:00:02]} 57. Rd3 {[%emt 0:01:00]} c4 {[%emt 0:00:01]} 58. Ra3 {[%emt 0:00:53]} Kb4 {[%emt 0:00:31]} 59. Nf2 {[%emt 0:01:33]} Rh6 {[%emt 0:02:01]} 60. Nh3 {[%emt 0:00:31]} Rg6 {[%emt 0:00:11]} 61. Nf2 {[%emt 0:00:05]} Bb6 {[%emt 0:00:27]} 62. Nd1 {[%emt 0:00:24]} Rh6 {[%emt 0:00:46]} 63. g5 {[%emt 0:00:43]} Rg6 {[%emt 0:00:10]} 64. g3 {[%emt 0:01:16]} fxg3 {[%emt 0:00:12]} 65. Kxg3 {[%emt 0:00:05]} Rxg5+ {[%emt 0:00:03]} 66. Kf3 {[%emt 0:00:07]} Bd4 {[%emt 0:01:01]} 67. Nc3 {[%emt 0:01:24]} Bxc3 {[%emt 0:00:01]} 68. Rxc3 {[%emt 0:00:07]} Rg1 {[%emt 0:00:07]} 69. Re3 {[%emt 0:00:10]} a4 {[%emt 0:00:34]} 70. Re2 {[%emt 0:00:15]} Kb3 {[%emt 0:00:01]} 71. Rh2 {[%emt 0:00:19]} c3 {[%emt 0:00:11]} 72. bxc3 {[%emt 0:00:03]} a3 {[%emt 0:00:02]} 73. c4 {[%emt 0:00:23]} a2 {[%emt 0:00:16]} 0-1

[Event "45th National Sub Junior 2019"]
[Site "Tiruchengode"]
[Date "2019.07.10"]
[Round "3.8"]
[White "Nikhil Magizhnan"]
[Black "Rohnit, G Amin"]
[Result "1-0"]
[ECO "C02"]
[WhiteElo "2164"]
[BlackElo "1766"]
[Annotator "NA"]
[PlyCount "113"]
[EventDate "2019.07.09"]
[EventCountry "IND"]
[SourceTitle "playchess.com"]
[Source "ChessBase"]
[SourceQuality "1"]
[TimeControl "5400+30"]

1. e4 {[%emt 0:00:00]} e6 {[%emt 0:00:00]} 2. d4 {[%emt 0:00:00]} d5 {[%emt 0:00:00]} 3. e5 {[%emt 0:00:00]} c5 {[%emt 0:00:00]} 4. c3 {[%emt 0:00:07]} Nc6 {[%emt 0:03:12]} 5. Nf3 {[%emt 0:00:08]} Bd7 {[%emt 0:00:05]} 6. Be2 {[%emt 0:00:40]} a6 {[%emt 0:01:49]} 7. O-O {[%emt 0:00:27]} cxd4 {[%emt 0:00:33]} 8. cxd4 {[%emt 0:00:04]} Rc8 {[%emt 0:01:17]} 9. Nc3 {[%emt 0:00:26]} b5 {[%emt 0:02:22]} 10. Bd3 {[%emt 0:00:31]} Qb6 {[%emt 0:14:17]} 11. Ne2 {[%emt 0:02:31]} Nge7 {[%emt 0:11:14]} 12. Be3 {[%emt 0:02:22]} Nb4 {[%emt 0:07:19]} 13. Bb1 {[%emt 0:00:31]} a5 {[%emt 0:00:36]} 14. Nd2 {[%emt 0:02:34]} a4 {[%emt 0:07:11]} 15. f4 {[%emt 0:00:38]} Nf5 {[%emt 0:00:36]} 16. Bf2 {[%emt 0:00:14]} h5 {[%emt 0:01:16]} 17. h3 {[%emt 0:03:25]} h4 {[%emt 0:08:16]} 18. Nf3 {[%emt 0:00:43]} Be7 {[%emt 0:00:03]} 19. Nc3 {[%emt 0:02:38]} g6 {[%emt 0:02:06]} 20. a3 {[%emt 0:00:42]} Nc6 {[%emt 0:00:42]} 21. Bxf5 {[%emt 0:01:33]} gxf5 {[%emt 0:00:10]} 22. Qe1 {[%emt 0:01:05]} Rb8 {[%emt 0:11:50]} 23. Nxh4 {[%emt 0:01:24]} Nxd4 {[%emt 0:07:03]} 24. Nxf5 {[%emt 0:31:18]} exf5 {[%emt 0:16:18]} 25. Qd1 {[%emt 0:00:36]} Bc5 {[%emt 0:01:47]} 26. Nxd5 {[%emt 0:00:22]} Qa7 {[%emt 0:00:32]} 27. Nf6+ {[%emt 0:01:11]} Ke7 {[%emt 0:00:13]} 28. Rc1 {[%emt 0:00:22]} Be6 {[%emt 0:01:07]} 29. Rxc5 {[%emt 0:00:54]} Qxc5 {[%emt 0:00:03]} 30. Bxd4 {[%emt 0:00:32]} Qc6 {[%emt 0:01:14]} 31. Bc3 {[%emt 0:02:48]} Bc4 {[%emt 0:00:02]} 32. Bb4+ {[%emt 0:00:33]} Ke6 {[%emt 0:00:03]} 33. Ne4 {[%emt 0:01:39]} Qd5 {[%emt 0:02:13]} 34. Nc5+ {[%emt 0:01:07]} Ke7 {[%emt 0:00:02]} 35. Na6+ {[%emt 0:00:36]} Kd7 {[%emt 0:00:05]} 36. Nxb8+ {[%emt 0:00:38]} Rxb8 {[%emt 0:00:05]} 37. Qxd5+ {[%emt 0:00:15]} Bxd5 {[%emt 0:00:04]} 38. Rc1 {[%emt 0:01:33]} Rg8 {[%emt 0:01:41]} 39. Rc2 {[%emt 0:00:40]} Ke6 {[%emt 0:00:45]} 40. Kh2 {[%emt 0:01:27]} Bc4 {[%emt 0:00:02]} 41. Rd2 {[%emt 0:00:32]} Bd5 {[%emt 0:00:03]} 42. Bc3 {[%emt 0:00:25]} Rh8 {[%emt 0:01:08]} 43. g4 {[%emt 0:01:02]} Rd8 {[%emt 0:01:18]} 44. Kg3 {[%emt 0:00:30]} Rg8 {[%emt 0:00:42]} 45. Kh4 {[%emt 0:01:41]} Rh8+ {[%emt 0:00:22]} 46. Kg5 {[%emt 0:00:48]} Rg8+ {[%emt 0:00:26]} 47. Kh6 {[%emt 0:00:45]} Rh8+ {[%emt 0:00:40]} 48. Kg7 {[%emt 0:00:52]} Rd8 {[%emt 0:00:04]} 49. Ba5 {[%emt 0:04:06]} Rd7 {[%emt 0:00:37]} 50. Kf8 {[%emt 0:00:14]} fxg4 {[%emt 0:00:53]} 51. hxg4 {[%emt 0:00:49]} Ra7 {[%emt 0:00:29]} 52. Bc3 {[%emt 0:00:34]} Ra8+ {[%emt 0:00:30]} 53. Kg7 {[%emt 0:00:03]} Rd8 {[%emt 0:00:17]} 54. f5+ {[%emt 0:00:15]} Ke7 {[%emt 0:00:13]} 55. e6 {[%emt 0:00:15]} Rd6 {[%emt 0:00:59]} 56. Bb4 {[%emt 0:00:27]} fxe6 {[%emt 0:00:02]} 57. f6+ {[%emt 0:00:15]} 1-0

[Event "45th National Sub Junior 2019"]
[Site "Tiruchengode"]
[Date "2019.07.10"]
[Round "3.9"]
[White "Sanket Chakravarty"]
[Black "Singh, Ojasva"]
[Result "1-0"]
[ECO "A34"]
[WhiteElo "2107"]
[BlackElo "1752"]
[Annotator "NA"]
[PlyCount "129"]
[EventDate "2019.07.09"]
[EventCountry "IND"]
[SourceTitle "playchess.com"]
[Source "ChessBase"]
[SourceQuality "1"]
[TimeControl "5400+30"]

1. c4 {[%emt 0:00:00]} e5 {[%emt 0:00:00]} 2. g3 {[%emt 0:00:00]} Nf6 {[%emt 0:00:02]} 3. Bg2 {[%emt 0:00:05]} d5 {[%emt 0:00:20]} 4. cxd5 {[%emt 0:00:07]} Nxd5 {[%emt 0:00:05]} 5. Nc3 {[%emt 0:00:05]} Nxc3 {[%emt 0:00:20]} 6. bxc3 {[%emt 0:00:12]} c5 {[%emt 0:00:07]} 7. d3 {[%emt 0:01:52]} Nc6 {[%emt 0:00:17]} 8. Nf3 {[%emt 0:00:41]} Be7 {[%emt 0:01:30]} 9. O-O {[%emt 0:00:39]} O-O {[%emt 0:00:05]} 10. Nd2 {[%emt 0:18:34]} Be6 {[%emt 0:05:27]} 11. Rb1 {[%emt 0:10:32]} Qc7 {[%emt 0:04:14]} 12. Qa4 {[%emt 0:03:37]} Rac8 {[%emt 0:06:33]} 13. Nc4 {[%emt 0:07:56]} f6 {[%emt 0:26:38]} 14. f4 {[%emt 0:09:08]} exf4 {[%emt 0:10:13]} 15. Bxf4 {[%emt 0:01:07]} Qd7 {[%emt 0:00:34]} 16. Bxc6 {[%emt 0:16:53]} bxc6 {[%emt 0:09:42]} 17. Qa6 {[%emt 0:00:55]} Bg4 {[%emt 0:08:51]} 18. Rf2 {[%emt 0:05:58]} g5 {[%emt 0:06:30]} 19. Rb7 {[%emt 0:09:16]} Qe6 {[%emt 0:01:50]} 20. Bd6 {[%emt 0:03:37]} Rfe8 {[%emt 0:08:11]} 21. Qxa7 {[%emt 0:02:44]} Ra8 {[%emt 0:01:46]} 22. Qxc5 {[%emt 0:00:15]} Rxa2 {[%emt 0:01:28]} 23. e4 {[%emt 0:01:20]} Ra1+ {[%emt 0:03:50]} 24. Rf1 {[%emt 0:00:49]} Rxf1+ {[%emt 0:00:47]} 25. Kxf1 {[%emt 0:00:02]} Bxd6 {[%emt 0:00:45]} 26. Nxd6 {[%emt 0:01:55]} Ra8 {[%emt 0:01:48]} 27. Rb2 {[%emt 0:01:05]} Ra1+ {[%emt 0:00:47]} 28. Kf2 {[%emt 0:00:39]} Ra2 {[%emt 0:00:09]} 29. Nc4 {[%emt 0:00:16]} Rxb2+ {[%emt 0:00:43]} 30. Nxb2 {[%emt 0:00:01]} Kg7 {[%emt 0:00:40]} 31. Nc4 {[%emt 0:00:13]} Qd7 {[%emt 0:00:23]} 32. Qd4 {[%emt 0:00:31]} Qxd4+ {[%emt 0:00:40]} 33. cxd4 {[%emt 0:00:02]} Kf7 {[%emt 0:00:23]} 34. Ke3 {[%emt 0:01:03]} Ke6 {[%emt 0:00:36]} 35. Nb6 {[%emt 0:01:11]} Kd6 {[%emt 0:00:20]} 36. Na4 {[%emt 0:00:39]} Bc8 {[%emt 0:00:43]} 37. Nc5 {[%emt 0:00:02]} Bg4 {[%emt 0:00:13]} 38. Kd2 {[%emt 0:03:37]} h5 {[%emt 0:00:31]} 39. Kc3 {[%emt 0:00:49]} Bc8 {[%emt 0:00:16]} 40. Kc4 Bg4 {[%emt 0:00:31]} 41. Kc3 {[%emt 0:01:24]} Bc8 {[%emt 0:00:07]} 42. Nb3 {[%emt 0:00:00]} Bg4 {[%emt 0:01:24]} 43. Na5 {[%emt 0:00:05]} Bd7 {[%emt 0:00:25]} 44. Nc4+ {[%emt 0:00:04]} Kc7 {[%emt 0:00:27]} 45. Kb4 {[%emt 0:00:37]} f5 {[%emt 0:00:12]} 46. Ne5 {[%emt 0:01:44]} Be6 {[%emt 0:00:55]} 47. exf5 {[%emt 0:00:32]} Bxf5 {[%emt 0:00:02]} 48. Kc5 {[%emt 0:00:01]} Bh7 {[%emt 0:00:46]} 49. Nxc6 {[%emt 0:00:16]} Bxd3 {[%emt 0:00:07]} 50. d5 {[%emt 0:00:04]} Bf5 {[%emt 0:00:40]} 51. d6+ {[%emt 0:00:10]} Kd7 {[%emt 0:00:13]} 52. Ne5+ {[%emt 0:00:08]} Kc8 {[%emt 0:00:31]} 53. Kd5 {[%emt 0:01:11]} Bh3 {[%emt 0:00:56]} 54. Nf7 {[%emt 0:00:19]} Kd7 {[%emt 0:00:47]} 55. Nxg5 {[%emt 0:00:15]} Bg4 {[%emt 0:00:14]} 56. Ke5 {[%emt 0:00:10]} Bd1 {[%emt 0:00:33]} 57. Ne4 {[%emt 0:00:06]} Be2 {[%emt 0:00:14]} 58. Nf6+ {[%emt 0:00:24]} Kd8 {[%emt 0:00:08]} 59. Kf5 {[%emt 0:00:02]} Bd1 {[%emt 0:00:29]} 60. Kg5 {[%emt 0:00:40]} Be2 {[%emt 0:00:05]} 61. h4 {[%emt 0:00:07]} Bd1 {[%emt 0:00:18]} 62. Nxh5 {[%emt 0:00:14]} Kd7 {[%emt 0:00:02]} 63. Nf6+ {[%emt 0:00:39]} Kxd6 {[%emt 0:00:06]} 64. Kg6 {[%emt 0:00:10]} Ke6 {[%emt 0:01:03]} 65. g4 {[%emt 0:04:41] Kd5} 1-0